bitfinex/quotes_BTCUSD_20230103
["timestamp","ask_amount","ask_price","bid_price","bid_amount"]
[1672727477018,1.70929058,16794.0,16793.0,0.02145689]
[1672727477762,2.43523535,16794.0,16793.0,0.02145689]
[1672727477979,1.70929058,16794.0,16793.0,0.02145689]
[1672727478733,1.69229058,16794.0,16793.0,0.02145689]
[1672727478983,1.70129058,16794.0,16793.0,0.02145689]
[1672727479240,2.20129058,16794.0,16793.0,0.02145689]
[1672727479494,1.96229726,16794.0,16793.0,0.02145689]
[1672727479778,1.69229058,16794.0,16793.0,0.02145689]
[1672727480040,1.70129058,16794.0,16793.0,0.02145689]
[1672727481051,1.59479058,16794.0,16793.0,0.02145689]
[1672727482055,2.11274253,16794.0,16793.0,0.02145689]
[1672727482299,2.53381906,16794.0,16793.0,0.02145689]
[1672727482786,2.10374253,16794.0,16793.0,0.02145689]
[1672727483036,2.23574253,16794.0,16793.0,0.02145689]
[1672727483310,2.34224253,16794.0,16793.0,0.02145689]
[1672727484061,2.21024253,16794.0,16793.0,0.02145689]
[1672727484307,2.29224253,16794.0,16793.0,0.02145689]
[1672727484803,2.35441585,16794.0,16793.0,0.02145689]
[1672727485555,1.79224253,16794.0,16793.0,0.02145689]
[1672727486068,2.29224253,16794.0,16793.0,0.02145689]
[1672727487594,10.64810597,16794.0,16793.0,0.02145689]
[1672727488120,10.06610597,16794.0,16793.0,0.02145689]
[1672727488352,11.15343527,16794.0,16793.0,0.02145689]
[1672727488622,4.61552587,16794.0,16793.0,8.9e-07]
[1672727488867,0.5,16793.0,16791.0,0.00114591]
[1672727489146,0.4793806,16792.0,16791.0,0.00114591]
[1672727489468,0.84967146,16792.0,16791.0,0.00114591]
[1672727489661,0.85817146,16792.0,16791.0,0.00114591]
[1672727490182,2.24921346,16792.0,16791.0,0.00114591]
[1672727490425,2.78197466,16792.0,16791.0,0.00114591]
[1672727490696,10.63681019,16792.0,16791.0,0.00114591]
[1672727490988,10.71881019,16792.0,16791.0,0.00114591]
[1672727491198,10.36397466,16792.0,16791.0,0.00114591]
[1672727491452,10.40859098,16792.0,16791.0,0.00114591]
[1672727491707,2.73110702,16792.0,16791.0,0.00114591]
[1672727492219,11.42214902,16792.0,16791.0,0.00114591]
[1672727492472,12.15541893,16792.0,16791.0,0.00114591]
[1672727492723,11.85228899,16792.0,16791.0,0.00114591]
[1672727492969,3.75188672,16792.0,16791.0,0.00114591]
[1672727493478,4.05542374,16792.0,16791.0,0.00114591]
[1672727493731,4.09579867,16792.0,16791.0,0.00114591]
[1672727493980,4.05542453,16792.0,16791.0,0.00114591]
[1672727494231,4.65582855,16792.0,16791.0,0.00114591]
[1672727494533,3.90282883,16792.0,16791.0,0.00114591]
[1672727495506,3.74728428,16792.0,16791.0,0.00114591]
[1672727495816,3.70073258,16792.0,16791.0,0.00114591]
[1672727496023,3.25587486,16792.0,16791.0,0.00114591]
[1672727496275,3.8405295,16792.0,16791.0,0.00114591]
[1672727497056,3.79012166,16792.0,16791.0,0.00114591]
[1672727497312,1.99048798,16792.0,16791.0,0.00114591]
[1672727498074,2.03739379,16792.0,16789.0,0.00252726]
[1672727498366,0.55194574,16790.0,16789.0,0.00252726]
[1672727498618,2.09546865,16790.0,16789.0,0.00252726]
[1672727499139,2.50746465,16790.0,16789.0,0.00252726]
[1672727499404,2.32923203,16790.0,16789.0,0.00252726]
[1672727500141,2.41123203,16790.0,16789.0,0.00252726]
[1672727500398,3.60241603,16790.0,16789.0,0.00252726]
[1672727501429,3.83684319,16790.0,16789.0,0.00252726]
[1672727501686,4.01510593,16790.0,16789.0,0.00252726]
[1672727501936,4.28228955,16790.0,16789.0,0.00252726]
[1672727502466,4.01510593,16790.0,16789.0,0.00252726]
[1672727502714,4.02360593,16790.0,16789.0,0.00252726]
[1672727503811,3.78064865,16790.0,16789.0,0.00252726]
[1672727504069,3.0177209,16790.0,16789.0,0.00252726]
[1672727504615,3.37407692,16790.0,16789.0,0.00252726]
[1672727504919,3.37407664,16790.0,16788.0,2.02643917]
[1672727505198,0.00594991,16789.0,16788.0,2.02643917]
[1672727505459,0.49771264,16789.0,16788.0,2.02643917]
[1672727505713,0.79771264,16789.0,16788.0,2.02643917]
[1672727505976,0.53048507,16789.0,16788.0,2.02643917]
[1672727506526,1.24359491,16789.0,16788.0,2.02643917]
[1672727506791,1.24359491,16789.0,16788.0,1.98584793]
[1672727506792,1.25259491,16789.0,16788.0,1.98584793]
[1672727507057,1.20620591,16789.0,16788.0,1.98584793]
[1672727507327,1.20620591,16789.0,16788.0,2.68584793]
[1672727507915,1.50620591,16789.0,16788.0,2.68584793]
[1672727508436,1.68435207,16789.0,16788.0,2.68584793]
[1672727508693,1.68435207,16789.0,16788.0,1.98584793]
[1672727509130,1.73074107,16789.0,16788.0,1.98584793]
[1672727509351,1.95157964,16789.0,16788.0,1.98584793]
[1672727509956,1.99796864,16789.0,16788.0,1.98884793]
[1672727510178,2.17617784,16789.0,16788.0,1.98884793]
[1672727510425,2.12978884,16789.0,16788.0,1.98884793]
[1672727510628,2.30800701,16789.0,16788.0,1.98884793]
[1672727510813,2.35439601,16789.0,16788.0,1.98884793]
[1672727511324,2.4033413,16789.0,16788.0,1.44428563]
[1672727511564,1.95789556,16789.0,16788.0,1.44428563]
[1672727512031,2.49214236,16789.0,16788.0,1.44428563]
[1672727512270,2.49214236,16789.0,16788.0,0.003]
[1672727512976,2.49214236,16789.0,16787.0,1.33800117]
[1672727513208,0.34714561,16788.0,16787.0,0.57721943]
[1672727513444,1.58486061,16788.0,16787.0,0.57721943]
[1672727513682,1.28486061,16788.0,16787.0,0.57721943]
[1672727513918,1.73096562,16788.0,16787.0,0.57721943]
[1672727514160,1.81910741,16788.0,16786.0,0.75628203]
[1672727514397,2.03168254,16788.0,16785.0,4.16025302]
[1672727514639,0.80301901,16786.0,16785.0,2.86485302]
[1672727514874,0.80896892,16786.0,16785.0,3.56485302]
[1672727515111,1.10896892,16786.0,16785.0,3.56485302]
[1672727516136,1.94353958,16786.0,16785.0,3.56485302]
[1672727517113,2.55527358,16786.0,16785.0,2.93719888]
[1672727517357,2.55527358,16786.0,16785.0,3.64150169]
[1672727518290,2.10915191,16786.0,16785.0,3.64150169]
[1672727518978,2.55550234,16786.0,16785.0,3.64150169]
[1672727519200,1.80915191,16786.0,16785.0,3.64150169]
[1672727519450,2.01699801,16786.0,16785.0,3.74770169]
[1672727521323,2.04245017,16786.0,16785.0,3.74770169]
[1672727521538,1.62856471,16786.0,16785.0,3.74770169]
[1672727521802,1.92856471,16786.0,16785.0,3.74770169]
[1672727522018,1.39431791,16786.0,16785.0,3.72770169]
[1672727523145,1.09431791,16786.0,16785.0,3.72770169]
[1672727523604,1.62856471,16786.0,16785.0,3.72770169]
[1672727523795,0.02194991,16786.0,16785.0,3.02339888]
[1672727524034,0.02194991,16786.0,16785.0,3.59898798]
[1672727525125,0.61768391,16786.0,16785.0,3.59898798]
[1672727525369,1.15193071,16786.0,16785.0,3.59898798]
[1672727526158,1.14693071,16786.0,16785.0,3.59898798]
[1672727526624,0.61268391,16786.0,16785.0,3.59898798]
[1672727526880,1.14693071,16786.0,16785.0,3.59898798]
[1672727528426,1.44693071,16786.0,16785.0,3.59898798]
[1672727528924,1.14693071,16786.0,16785.0,3.59898798]
[1672727529179,1.74266471,16786.0,16785.0,3.59898798]
[1672727531192,2.04266471,16786.0,16785.0,3.59898798]
[1672727531453,1.50841791,16786.0,16785.0,3.59898798]
[1672727531729,1.50841791,16786.0,16785.0,2.7225335]
[1672727531991,2.48412539,16786.0,16785.0,0.7]
[1672727532236,1.60920932,16786.0,16785.0,0.7]
[1672727532491,1.59820932,16786.0,16785.0,0.7]
[1672727533022,1.61520932,16786.0,16785.0,0.004]
[1672727533284,1.59820932,16786.0,16784.0,0.67924176]
[1672727533529,0.94989888,16785.0,16784.0,0.67924176]
[1672727533783,0.90945979,16785.0,16784.0,1.37924176]
[1672727534058,0.90945979,16785.0,16784.0,0.67924176]
[1672727535134,2.11799979,16785.0,16784.0,0.68324176]
[1672727535395,2.18030828,16785.0,16784.0,0.68324176]
[1672727535644,2.2797789,16785.0,16784.0,0.68324176]
[1672727536206,2.18030828,16785.0,16784.0,0.68324176]
[1672727537978,2.22669728,16785.0,16784.0,0.68324176]
[1672727538233,2.22669728,16785.0,16784.0,0.67824176]
[1672727538724,2.18030828,16785.0,16784.0,0.67824176]
[1672727539463,2.11799979,16785.0,16784.0,0.67824176]
[1672727539940,2.16438879,16785.0,16784.0,0.004]
[1672727540204,1.89566505,16785.0,16784.0,0.004]
[1672727540718,1.61421253,16785.0,16784.0,0.004]
[1672727541454,2.20998253,16785.0,16784.0,0.004]
[1672727542426,2.20998253,16785.0,16784.0,0.00399999]
[1672727542688,2.27229706,16785.0,16784.0,0.00399999]
[1672727544189,2.87487346,16785.0,16784.0,0.00399999]
[1672727544445,2.27229706,16785.0,16784.0,0.00399999]
[1672727544937,2.77229706,16785.0,16784.0,0.00399999]
[1672727545176,3.10910017,16785.0,16784.0,0.00399999]
[1672727545679,3.04678564,16785.0,16784.0,0.00399999]
[1672727545945,3.1091015,16785.0,16784.0,0.00399999]
[1672727546461,3.04678564,16785.0,16784.0,0.00399999]
[1672727546715,3.10910297,16785.0,16784.0,0.00399999]
[1672727546983,3.04678564,16785.0,16784.0,0.00399999]
[1672727547237,2.45899129,16785.0,16784.0,0.8619982]
[1672727547492,2.45899129,16785.0,16784.0,0.62193818]
[1672727547493,1.87257343,16785.0,16784.0,0.62193818]
[1672727547765,2.99442078,16785.0,16784.0,0.00399999]
[1672727548033,1.85664891,16785.0,16784.0,0.00399999]
[1672727548295,1.85664891,16785.0,16784.0,0.54841464]
[1672727548812,2.75899129,16785.0,16784.0,0.54841464]
[1672727549063,2.821304,16785.0,16784.0,0.54841464]
[1672727549299,2.75899129,16785.0,16784.0,0.54841464]
[1672727549800,2.75899129,16785.0,16784.0,0.00399999]
[1672727551124,2.75899129,16785.0,16784.0,0.53972146]
[1672727551857,2.45899129,16785.0,16784.0,0.53972146]
[1672727552119,1.21448991,16785.0,16784.0,0.53972146]
[1672727552619,1.75006345,16785.0,16784.0,0.53972146]
[1672727553612,2.05006345,16785.0,16784.0,0.53972146]
[1672727554880,2.05006345,16785.0,16784.0,1.23972146]
[1672727555121,2.11237341,16785.0,16784.0,1.23972146]
[1672727555367,1.51448991,16785.0,16784.0,1.23972146]
[1672727555632,2.11683229,16785.0,16784.0,1.23972146]
[1672727555891,2.22553341,16785.0,16784.0,1.23972146]
[1672727556132,2.16322129,16785.0,16784.0,1.23972146]
[1672727556396,2.16322129,16785.0,16784.0,0.53972146]
[1672727557428,2.22553335,16785.0,16784.0,0.53972146]
[1672727557679,2.16322129,16785.0,16784.0,0.53972146]
[1672727559210,2.11683229,16785.0,16784.0,0.00399999]
[1672727560736,2.17914555,16785.0,16784.0,0.00399999]
[1672727561242,1.51448991,16785.0,16784.0,0.00399999]
[1672727561486,2.11683229,16785.0,16784.0,0.00399999]
[1672727561745,2.16322129,16785.0,16784.0,0.00399999]
[1672727562954,2.11683229,16785.0,16784.0,0.00399999]
[1672727563254,2.45495903,16785.0,16784.0,0.00399999]
[1672727563492,1.85261665,16785.0,16784.0,0.00399999]
[1672727563742,1.56087891,16785.0,16784.0,0.00399999]
[1672727566989,1.60614598,16785.0,16784.0,0.00399999]
[1672727567248,1.60614598,16785.0,16784.0,0.00393344]
[1672727569840,1.76614598,16785.0,16784.0,0.00393344]
[1672727570081,2.26614598,16785.0,16784.0,0.00393344]
[1672727570331,2.73577217,16785.0,16784.0,0.00393344]
[1672727571088,2.53577217,16785.0,16784.0,0.00393344]
[1672727571831,2.51877217,16785.0,16783.0,0.0045444]
[1672727572043,0.3,16784.0,16783.0,0.0045444]
[1672727572286,0.346389,16784.0,16783.0,0.0045444]
[1672727572529,0.40234658,16784.0,16783.0,0.0045444]
[1672727572776,0.40234658,16784.0,16783.0,0.0075444]
[1672727573017,0.40234658,16784.0,16783.0,0.0045444]
[1672727573297,1.59395658,16784.0,16783.0,0.0045444]
[1672727573541,1.86430786,16784.0,16783.0,0.0075444]
[1672727574312,2.36430786,16784.0,16783.0,0.0075444]
[1672727574565,2.52430786,16784.0,16783.0,0.0075444]
[1672727575325,2.50630786,16784.0,16783.0,0.0045444]
[1672727575578,2.57862817,16784.0,16783.0,0.0075444]
[1672727575813,2.56862817,16784.0,16783.0,0.0045444]
[1672727576072,2.64362817,16784.0,16783.0,0.0055444]
[1672727577869,2.39127689,16784.0,16783.0,0.0055444]
[1672727578426,1.89127689,16784.0,16783.0,0.0055444]
[1672727581277,2.40922884,16784.0,16783.0,0.0055444]
[1672727581829,2.39127689,16784.0,16783.0,0.0055444]
[1672727582075,3.26989378,16784.0,16783.0,0.0055444]
[1672727582320,3.748956,16784.0,16783.0,0.0055444]
[1672727582580,2.87033911,16784.0,16783.0,0.0055444]
[1672727585660,2.83828339,16784.0,16783.0,0.0055444]
[1672727585921,3.93903466,16784.0,16783.0,0.0055444]
[1672727586170,3.94753466,16784.0,16783.0,0.0055444]
[1672727586433,3.56891777,16784.0,16783.0,0.0055444]
[1672727588704,4.44753466,16784.0,16783.0,0.0055444]
[1672727589958,3.56891777,16784.0,16783.0,0.00542706]
[1672727591202,4.44398291,16784.0,16783.0,0.00542706]
[1672727591700,2.9263038,16784.0,16783.0,0.00542706]
[1672727593224,2.4263038,16784.0,16783.0,0.00542706]
[1672727593468,1.9263038,16784.0,16783.0,0.00542706]
[1672727593947,2.3263038,16784.0,16783.0,0.00542706]
[1672727594226,1.9263038,16784.0,16783.0,0.00542706]
[1672727594485,1.8799148,16784.0,16783.0,0.00542706]
[1672727594736,2.2263038,16784.0,16783.0,0.00542706]
[1672727594985,1.9263038,16784.0,16783.0,0.00542706]
[1672727595509,1.73985185,16784.0,16783.0,0.00542706]
[1672727595763,1.43985185,16784.0,16783.0,0.00542706]
[1672727596020,1.39346285,16784.0,16783.0,0.00542706]
[1672727596524,1.43985185,16784.0,16783.0,0.00542706]
[1672727597753,1.73985185,16784.0,16783.0,0.00542706]
[1672727599724,2.18685272,16784.0,16783.0,0.00542706]
[1672727600250,2.68685272,16784.0,16783.0,0.00542706]
[1672727600526,3.56546961,16784.0,16783.0,0.00542706]
[1672727602905,3.72546961,16784.0,16783.0,0.00542706]
[1672727603160,3.6631493,16784.0,16783.0,0.00542706]
[1672727603713,3.72547413,16784.0,16783.0,0.00542706]
[1672727604512,4.23397413,16784.0,16783.0,0.00542706]
[1672727606071,4.25192608,16784.0,16783.0,0.00542706]
[1672727606318,4.25369667,16784.0,16783.0,0.00542706]
[1672727606814,10.87330919,16784.0,16783.0,0.00542706]
[1672727607823,3.37330919,16784.0,16783.0,0.00542706]
[1672727608839,3.31098436,16784.0,16783.0,0.00542706]
[1672727609589,3.37331068,16784.0,16783.0,0.00542706]
[1672727612089,2.90835786,16784.0,16783.0,0.00542706]
[1672727612338,3.78903556,16784.0,16783.0,0.00535875]
[1672727612590,2.90835786,16784.0,16783.0,0.00535875]
[1672727614085,10.40835786,16784.0,16783.0,0.00535875]
[1672727614325,11.00876013,16784.0,16783.0,0.00535875]
[1672727614825,10.9501775,16784.0,16783.0,0.00535875]
[1672727615074,3.50497095,16784.0,16783.0,0.00535875]
[1672727615325,3.5229229,16784.0,16783.0,0.00535875]
[1672727615567,10.58252063,16784.0,16783.0,0.00535875]
[1672727615816,10.46540086,16784.0,16783.0,0.00535875]
[1672727616072,10.52670422,16784.0,16783.0,0.00535875]
[1672727616560,3.02670422,16784.0,16783.0,0.00535875]
[1672727616811,3.45154825,16784.0,16783.0,0.00535875]
[1672727617056,10.95154825,16784.0,16783.0,0.00535875]
[1672727619307,10.89024489,16784.0,16783.0,0.00535875]
[1672727620053,10.93790883,16784.0,16783.0,0.00535875]
[1672727620328,10.73024489,16784.0,16783.0,0.00535875]
[1672727620576,10.73024489,16784.0,16782.0,0.00570824]
[1672727620577,11.30401754,16784.0,16782.0,0.00570824]
[1672727620821,1.57355218,16783.0,16782.0,0.00570824]
[1672727621066,1.66451525,16783.0,16782.0,0.00570824]
[1672727622313,2.85619725,16783.0,16782.0,0.00570824]
[1672727623090,2.86619725,16783.0,16782.0,0.00770824]
[1672727623574,2.26579498,16783.0,16782.0,0.00770824]
[1672727623833,2.28374693,16783.0,16782.0,0.00770824]
[1672727624579,3.00567063,16783.0,16782.0,0.00770824]
[1672727624836,2.12504693,16783.0,16782.0,0.00770824]
[1672727625842,3.00566406,16783.0,16782.0,0.00770824]
[1672727626087,2.12504693,16783.0,16782.0,0.00770824]
[1672727626343,3.0056046,16783.0,16782.0,0.00770824]
[1672727626586,3.00560459,16783.0,16782.0,0.00770824]
[1672727626832,3.00560564,16783.0,16782.0,0.00770824]
[1672727627080,2.12504693,16783.0,16782.0,0.00770824]
[1672727627334,2.18737711,16783.0,16782.0,0.00770824]
[1672727628138,3.06793583,16783.0,16782.0,0.00770824]
[1672727628642,2.78777938,16783.0,16782.0,0.00770824]
[1672727628906,3.66830162,16783.0,16782.0,0.00770824]
[1672727629150,2.78777938,16783.0,16782.0,0.00770824]
[1672727629405,3.66830251,16783.0,16782.0,0.00770824]
[1672727629652,2.18737711,16783.0,16782.0,0.00770824]
[1672727630420,3.06790209,16783.0,16782.0,0.00770824]
[1672727630672,2.54995014,16783.0,16782.0,0.00770824]
[1672727630926,1.29859498,16783.0,16782.0,0.00770824]
[1672727631414,1.36092049,16783.0,16782.0,0.07476576]
[1672727631931,3.08475102,16783.0,16782.0,0.07476576]
[1672727632178,2.24144547,16783.0,16782.0,0.07476576]
[1672727632447,2.17911996,16783.0,16782.0,0.07476576]
[1672727632700,2.47911996,16783.0,16782.0,0.07476576]
[1672727634591,1.59859498,16783.0,16782.0,0.07476576]
[1672727636741,1.66092137,16783.0,16782.0,0.07476576]
[1672727640037,1.66082307,16783.0,16782.0,0.07476576]
[1672727640554,1.86082307,16783.0,16782.0,0.07476576]
[1672727641005,1.66082307,16783.0,16782.0,0.07476576]
[1672727643510,1.66082307,16783.0,16782.0,0.7909053]
[1672727643781,1.5699583,16783.0,16782.0,0.7909053]
[1672727644260,1.6162183,16783.0,16782.0,0.7909053]
[1672727644777,1.6162183,16783.0,16782.0,0.07476576]
[1672727657995,1.67720674,16783.0,16782.0,0.07476576]
[1672727658205,2.17720674,16783.0,16782.0,0.07476576]
[1672727658726,1.67720674,16783.0,16782.0,0.07476576]
[1672727658945,1.97720674,16783.0,16782.0,0.07476576]
[1672727659196,2.85773172,16783.0,16782.0,0.07476576]
[1672727659451,1.97720674,16783.0,16782.0,0.07476576]
[1672727660486,2.85773172,16783.0,16782.0,0.07476576]
[1672727660950,1.97720674,16783.0,16782.0,0.07476576]
[1672727661447,2.85773172,16783.0,16782.0,0.07476576]
[1672727662729,2.87568367,16783.0,16782.0,0.07468388]
[1672727663017,2.57568367,16783.0,16782.0,0.07468388]
[1672727663753,2.77568367,16783.0,16782.0,0.07468388]
[1672727664536,2.78418367,16783.0,16782.0,0.07468388]
[1672727664760,1.90365869,16783.0,16782.0,0.07468388]
[1672727665273,2.50406096,16783.0,16782.0,0.07468388]
[1672727665514,1.40365869,16783.0,16782.0,0.07468388]
[1672727665761,2.23798555,16783.0,16782.0,0.07468388]
[1672727666014,3.16483086,16783.0,16782.0,0.07468388]
[1672727666260,3.10250447,16783.0,16782.0,0.07468388]
[1672727666749,3.40250447,16783.0,16782.0,0.07468388]
[1672727667252,3.38455252,16783.0,16782.0,0.07468388]
[1672727667510,3.44688062,16783.0,16782.0,0.07468388]
[1672727667766,3.38455252,16783.0,16782.0,0.07468388]
[1672727668258,3.44688075,16783.0,16782.0,0.07468388]
[1672727669527,2.55779544,16783.0,16782.0,0.07468388]
[1672727669760,2.51153544,16783.0,16782.0,0.07468388]
[1672727670041,2.44920721,16783.0,16782.0,0.07468388]
[1672727670295,2.49546721,16783.0,16782.0,0.07468388]
[1672727671044,2.44920721,16783.0,16782.0,0.07468388]
[1672727673314,2.38821877,16783.0,16782.0,0.07468388]
[1672727674921,2.38821877,16783.0,16782.0,1.34576621]
[1672727675168,2.38821877,16783.0,16782.0,0.60596291]
[1672727677919,2.45054276,16783.0,16782.0,0.07468388]
[1672727678165,2.55926855,16783.0,16782.0,0.07468388]
[1672727678415,2.38821877,16783.0,16782.0,0.07468388]
[1672727678935,2.45054338,16783.0,16782.0,0.07468388]
[1672727680752,2.38821877,16783.0,16782.0,0.07468388]
[1672727682471,2.38821877,16783.0,16782.0,0.81470431]
[1672727683727,2.38821877,16783.0,16782.0,0.07468388]
[1672727683971,2.38821877,16783.0,16782.0,0.81456373]
[1672727685708,2.38821877,16783.0,16782.0,0.07468388]
[1672727686483,2.38821877,16783.0,16782.0,0.07459923]
[1672727686484,2.88559254,16783.0,16782.0,0.07459923]
[1672727686736,3.87476461,16783.0,16782.0,0.07459923]
[1672727687266,3.42432205,16783.0,16782.0,0.07459923]
[1672727687501,3.36199529,16783.0,16782.0,0.07459923]
[1672727687742,3.42432235,16783.0,16782.0,0.07459923]
[1672727688235,3.37806235,16783.0,16782.0,0.07459923]
[1672727688750,3.42432235,16783.0,16782.0,0.07459923]
[1672727689512,3.68236375,16783.0,16782.0,0.07459923]
[1672727690001,2.81973039,16783.0,16782.0,0.07459923]
[1672727690501,3.38003367,16783.0,16782.0,0.07459923]
[1672727692482,3.44236076,16783.0,16782.0,0.07459923]
[1672727694684,3.38003367,16783.0,16782.0,0.07459923]
[1672727696483,3.38853367,16783.0,16782.0,0.07459923]
[1672727697494,3.37853367,16783.0,16782.0,0.07259923]
[1672727697740,3.51053367,16783.0,16782.0,0.07259923]
[1672727697978,4.01754804,16783.0,16782.0,0.07259923]
[1672727698970,3.51053367,16783.0,16782.0,0.07259923]
[1672727703506,3.46427367,16783.0,16782.0,0.07259923]
[1672727703759,3.51053367,16783.0,16782.0,0.07259923]
[1672727704772,4.01053367,16783.0,16782.0,0.07259923]
[1672727705021,3.62986193,16783.0,16782.0,0.07259923]
[1672727705274,4.2302642,16783.0,16782.0,0.07259923]
[1672727706331,4.2302642,16783.0,16782.0,0.07252073]
[1672727706596,3.62986193,16783.0,16782.0,0.07252073]
[1672727707646,2.74927507,16783.0,16782.0,0.07252073]
[1672727709261,3.6297287,16783.0,16782.0,0.07252073]
[1672727710037,2.74927507,16783.0,16782.0,0.07252073]
[1672727710291,3.34967734,16783.0,16782.0,0.07252073]
[1672727712302,4.23008596,16783.0,16782.0,0.07252073]
[1672727714635,3.34967734,16783.0,16782.0,0.07252073]
[1672727718108,2.84967734,16783.0,16782.0,0.07252073]
[1672727718335,3.12974963,16783.0,16782.0,0.07252073]
[1672727720126,3.32974963,16783.0,16782.0,0.07252073]
[1672727720384,2.54927507,16783.0,16782.0,0.07252073]
[1672727721108,2.24927507,16783.0,16782.0,0.07252073]
[1672727721609,2.54927507,16783.0,16782.0,0.07252073]
[1672727721858,2.48589076,16783.0,16782.0,0.07252073]
[1672727722109,2.98589076,16783.0,16782.0,0.07252073]
[1672727723591,2.74427507,16783.0,16782.0,0.07252073]
[1672727728605,2.90427507,16783.0,16782.0,0.07252073]
[1672727732702,10.40427507,16783.0,16782.0,0.07252073]
[1672727737713,10.40427507,16783.0,16782.0,0.00965834]
[1672727738486,10.35734386,16783.0,16782.0,0.00965834]
[1672727738740,11.00489987,16783.0,16782.0,0.00965834]
[1672727740535,10.95774613,16783.0,16782.0,0.00965834]
[1672727741064,11.00679498,16783.0,16782.0,0.00965834]
[1672727741310,11.00679498,16783.0,16782.0,3.4e-07]
[1672727741573,0.5,16782.0,16780.0,1.4501]
[1672727741833,1.77716728,16781.0,16780.0,1.4501]
[1672727742098,0.94812191,16781.0,16780.0,1.4501]
[1672727742363,1.82927375,16781.0,16780.0,1.4501]
[1672727743380,1.55403391,16781.0,16780.0,1.4511]
[1672727744736,2.15443618,16781.0,16780.0,1.4511]
[1672727744932,2.14443618,16781.0,16780.0,1.4501]
[1672727745162,3.74673738,16781.0,16780.0,1.4501]
[1672727745435,3.67173738,16781.0,16780.0,1.4501]
[1672727745975,3.74673738,16781.0,16780.0,1.4501]
[1672727746245,4.34264938,16781.0,16780.0,1.4501]
[1672727747022,3.961576,16781.0,16780.0,1.4501]
[1672727747556,4.120676,16781.0,16780.0,1.4501]
[1672727748591,3.961576,16781.0,16780.0,1.4501]
[1672727750744,4.130076,16781.0,16780.0,1.4501]
[1672727751549,4.14802795,16781.0,16780.0,1.4501]
[1672727754412,11.64802795,16781.0,16779.0,0.00102755]
[1672727754653,2.19943873,16780.0,16779.0,0.00102755]
[1672727754904,2.55164864,16780.0,16779.0,0.00102755]
[1672727756393,3.14759564,16780.0,16779.0,0.00102755]
[1672727756642,3.15759564,16780.0,16779.0,0.00202755]
[1672727757396,3.14759564,16780.0,16779.0,0.00102755]
[1672727757644,3.27959564,16780.0,16779.0,0.00102755]
[1672727758129,3.27936257,16780.0,16779.0,0.00102755]
[1672727758391,2.99501938,16780.0,16779.0,0.00102755]
[1672727758633,3.18147133,16780.0,16779.0,0.00102755]
[1672727760240,10.68147133,16780.0,16779.0,0.00102755]
[1672727761195,3.18147133,16780.0,16779.0,0.00102755]
[1672727761686,3.18147133,16780.0,16779.0,0.00090872]
[1672727762194,2.58106906,16780.0,16779.0,0.00090872]
[1672727765175,10.08106906,16780.0,16779.0,0.00090872]
[1672727765946,10.06311711,16780.0,16779.0,0.00090872]
[1672727767916,10.08106906,16780.0,16779.0,0.00090872]
[1672727772972,10.06311711,16780.0,16779.0,0.00090872]
[1672727773226,10.66351938,16780.0,16779.0,0.00090872]
[1672727774015,10.68147133,16780.0,16779.0,0.00090872]
[1672727774767,10.71082049,16780.0,16779.0,0.00090872]
[1672727775346,10.69730608,16780.0,16779.0,7.2e-07]
[1672727775567,10.69730608,16780.0,16779.0,0.0681045]
[1672727775804,10.63345534,16780.0,16779.0,5e-07]
[1672727776054,10.63345534,16780.0,16778.0,0.00190333]
[1672727776310,2.3923884,16779.0,16778.0,0.00190333]
[1672727776622,2.39238929,16779.0,16778.0,0.00190333]
[1672727777076,2.99279156,16779.0,16778.0,0.00190333]
[1672727777573,2.43663715,16779.0,16778.0,0.00190333]
[1672727777821,2.51163715,16779.0,16778.0,0.00190333]
[1672727778327,2.24529272,16779.0,16778.0,0.00190333]
[1672727778583,2.22734077,16779.0,16778.0,0.00190333]
[1672727779868,3.10765748,16779.0,16778.0,0.00190333]
[1672727780125,3.12560943,16779.0,16778.0,0.00190333]
[1672727780412,3.1731905,16779.0,16778.0,0.00190333]
[1672727780898,3.15523855,16779.0,16778.0,0.00190333]
[1672727782902,3.1731905,16779.0,16778.0,0.00190333]
[1672727784392,10.6731905,16779.0,16778.0,0.00190333]
[1672727786611,3.12894264,16779.0,16778.0,0.00190333]
[1672727786882,3.86478372,16779.0,16777.0,0.00689084]
[1672727787135,1.24258962,16778.0,16776.0,0.00721425]
[1672727787392,1.16,16777.0,16776.0,0.00721425]
[1672727787647,1.53016186,16777.0,16776.0,0.00721425]
[1672727788155,2.12621586,16777.0,16776.0,0.00721425]
[1672727788659,9.62621586,16777.0,16776.0,0.00721425]
[1672727788917,10.28803696,16777.0,16776.0,0.00721425]
[1672727789214,11.01909096,16777.0,16776.0,0.00721425]
[1672727789942,10.95767213,16777.0,16776.0,0.00721425]
[1672727790508,11.10459509,16777.0,16776.0,0.00721425]
[1672727790747,3.00419282,16777.0,16776.0,0.00721425]
[1672727791505,3.72475559,16777.0,16776.0,0.00721425]
[1672727792313,4.32080959,16777.0,16776.0,0.00721425]
[1672727795314,3.44024682,16777.0,16776.0,0.00721425]
[1672727795580,3.8510215,16777.0,16776.0,0.00721425]
[1672727795867,3.8510215,16777.0,16775.0,0.00235279]
[1672727796131,0.94339606,16776.0,16775.0,0.00235279]
[1672727796380,1.28965606,16776.0,16775.0,0.00235279]
[1672727796894,1.88574506,16776.0,16775.0,0.00235279]
[1672727797408,2.27591631,16776.0,16775.0,0.00235279]
[1672727797668,2.29386826,16776.0,16775.0,0.00235279]
[1672727797915,0.5,16775.0,16774.0,1.40705875]
[1672727798171,1.74546008,16775.0,16774.0,1.40705875]
[1672727798422,1.79172008,16775.0,16774.0,1.40705875]
[1672727798674,2.29172008,16775.0,16774.0,1.40705875]
[1672727799169,2.88784508,16775.0,16774.0,1.40705875]
[1672727799421,3.01984508,16775.0,16774.0,1.40705875]
[1672727800681,3.44701223,16775.0,16774.0,1.40705875]
[1672727800944,3.01984508,16775.0,16774.0,1.40705875]
[1672727803218,3.01984508,16775.0,16774.0,0.00255875]
[1672727804958,3.11939638,16775.0,16774.0,0.00255875]
[1672727805200,10.67819195,16775.0,16774.0,0.00255875]
[1672727805444,11.21979865,16775.0,16774.0,0.00255875]
[1672727805689,11.27296388,16775.0,16773.0,0.00755875]
[1672727805929,0.34626,16774.0,16773.0,0.00755875]
[1672727806182,0.3909197,16774.0,16773.0,0.00755875]
[1672727806429,0.39686961,16774.0,16773.0,0.00755875]
[1672727807946,0.99727188,16774.0,16773.0,0.00755875]
[1672727808441,0.47086961,16774.0,16773.0,0.00755875]
[1672727811691,0.39686961,16774.0,16773.0,0.00755875]
[1672727811938,0.53086961,16774.0,16773.0,0.00755875]
[1672727813493,0.15790186,16774.0,16773.0,0.58079819]
[1672727813751,0.13994991,16774.0,16773.0,1.19474919]
[1672727814004,0.13994991,16774.0,16773.0,1.95596133]
[1672727814272,0.13994991,16774.0,16773.0,1.34201033]
[1672727814472,0.74280754,16774.0,16773.0,1.34201033]
[1672727814780,0.13994991,16774.0,16773.0,1.34201033]
[1672727815033,0.74280518,16774.0,16773.0,1.95596133]
[1672727815272,0.13994991,16774.0,16773.0,1.34201033]
[1672727815863,0.43994991,16774.0,16773.0,1.34201033]